[Event "SS Manhem Chess Week 2019 Goteborg Open"]
[Site "Molnlycke kulturhus, Biblioteksgatan 2, Molnlycke, Sweden"]
[Date "2019.08.16"]
[Round "1.7"]
[White "Vypkhaniuk, Ihor"]
[Black "Gustavsson, Andreas"]
[Result "1-0"]
[TimeControl "15 minutes + 5 seconds per move from move one (Round 1 - 4) / 90 minutes + 30 seconds per move from move one (Round 5 - 8)"]
[WhiteTitle "FM"]
[WhiteFideId "14112256"]
[BlackFideId "1738895"]
[WhiteElo "2405"]
[BlackElo "1865"]

1. Nf3 {[%clk 00:15:07]} {[%emt 00:00:02]} e6 {[%clk 00:15:06]} {[%emt
00:00:04]} 2. c4 {[%clk 00:15:05]} {[%emt 00:00:07]} b6 {[%clk 00:15:05]}
{[%emt 00:00:07]} 3. g3 {[%clk 00:15:08]} {[%emt 00:00:01]} Bb7 {[%clk
00:15:08]} {[%emt 00:00:02]} 4. Bg2 {[%clk 00:15:12]} f5 {[%clk 00:15:11]}
{[%emt 00:00:04]} 5. O-O {[%clk 00:15:14]} {[%emt 00:00:02]} Nf6 {[%clk
00:15:14]} {[%emt 00:00:02]} 6. d4 {[%clk 00:15:13]} {[%emt 00:00:06]} Be7
{[%clk 00:15:06]} {[%emt 00:00:13]} 7. a3 {[%clk 00:15:10]} {[%emt 00:00:08]}
a5 {[%clk 00:14:52]} {[%emt 00:00:19]} 8. Nc3 {[%clk 00:15:13]} {[%emt
00:00:02]} O-O {[%clk 00:14:53]} {[%emt 00:00:04]} 9. d5 {[%clk 00:15:17]}
{[%emt 00:00:02]} Na6 {[%clk 00:14:14]} {[%emt 00:00:44]} 10. Qc2 {[%clk
00:14:24]} {[%emt 00:00:58]} Nc5 {[%clk 00:13:46]} {[%emt 00:00:33]} 11. Rd1
{[%clk 00:14:00]} {[%emt 00:00:29]} exd5 {[%clk 00:10:23]} {[%emt 00:03:29]} 12.
Nd4 {[%clk 00:13:57]} {[%emt 00:00:07]} Nfe4 {[%clk 00:09:12]} {[%emt
00:01:16]} 13. Nxd5 {[%clk 00:13:59]} {[%emt 00:00:03]} Nd6 {[%clk 00:04:37]}
{[%emt 00:04:40]} 14. Bf4 {[%clk 00:13:09]} {[%emt 00:00:54]} g6 {[%clk
00:03:31]} {[%emt 00:01:12]} 15. Bxd6 {[%clk 00:13:05]} {[%emt 00:00:09]} Bxd6
{[%clk 00:03:14]} {[%emt 00:00:22]} 16. Nb5 {[%clk 00:13:09]} {[%emt 00:00:01]}
Ne4 {[%clk 00:02:17]} {[%emt 00:01:02]} 17. Bxe4 {[%clk 00:12:56]} {[%emt
00:00:17]} fxe4 {[%clk 00:02:16]} {[%emt 00:00:06]} 18. Nxd6 {[%clk 00:12:55]}
{[%emt 00:00:06]} cxd6 {[%clk 00:02:13]} {[%emt 00:00:08]} 19. Qxe4 {[%clk
00:12:58]} {[%emt 00:00:02]} Bc6 {[%clk 00:01:13]} {[%emt 00:01:05]} 20. Ne7+
{[%clk 00:12:52]} {[%emt 00:00:11]} Kg7 {[%clk 00:01:02]} {[%emt 00:00:16]} 21.
Nxc6 {[%clk 00:11:56]} {[%emt 00:01:01]} dxc6 {[%clk 00:01:02]} {[%emt
00:00:05]} 22. Qxc6 {[%clk 00:11:41]} {[%emt 00:00:20]} Qf6 {[%clk 00:00:53]}
{[%emt 00:00:14]} 23. Qxb6 {[%clk 00:11:37]} {[%emt 00:00:10]} Rab8 {[%clk
00:00:21]} {[%emt 00:00:37]} 24. Qd4 {[%clk 00:11:37]} {[%emt 00:00:05]} Qxd4
{[%clk 00:00:16]} {[%emt 00:00:10]} 25. Rxd4 {[%clk 00:11:40]} {[%emt
00:00:02]} Rxb2 {[%clk 00:00:18]} {[%emt 00:00:03]} 26. Kf1 {[%clk 00:11:24]}
{[%emt 00:00:21]} Re8 {[%clk 00:00:14]} {[%emt 00:00:09]} 27. Re1 {[%clk
00:10:18]} {[%emt 00:01:10]} Re6 {[%clk 00:00:11]} {[%emt 00:00:08]} 28. Rd5
{[%clk 00:10:15]} {[%emt 00:00:09]} Rc2 {[%clk 00:00:08]} {[%emt 00:00:08]} 29.
Rxa5 {[%clk 00:10:11]} {[%emt 00:00:09]} Rxc4 {[%clk 00:00:11]} {[%emt
00:00:01]} 30. Rd5 {[%clk 00:10:15]} {[%emt 00:00:01]} Ra4 {[%clk 00:00:09]}
{[%emt 00:00:08]} 31. Rd3 {[%clk 00:10:17]} {[%emt 00:00:02]} d5 {[%clk
00:00:07]} {[%emt 00:00:08]} 32. Red1 {[%clk 00:10:06]} {[%emt 00:00:15]} Rea6
{[%clk 00:00:08]} {[%emt 00:00:04]} 33. Rb3 {[%clk 00:10:00]} {[%emt 00:00:10]}
R4a5 {[%clk 00:00:08]} {[%emt 00:00:05]} 34. Rd4 {[%clk 00:09:47]} {[%emt
00:00:17]} Kf6 {[%clk 00:00:11]} {[%emt 00:00:02]} 35. Rf4+ {[%clk 00:09:50]}
{[%emt 00:00:02]} Ke5 {[%clk 00:00:13]} {[%emt 00:00:03]} 36. Re3+ {[%clk
00:09:53]} {[%emt 00:00:02]} Kd6 {[%clk 00:00:15]} {[%emt 00:00:03]} 37. Rf6+
{[%clk 00:09:54]} {[%emt 00:00:03]} Kc5 {[%clk 00:00:19]} {[%emt 00:00:02]} 38.
Rxa6 {[%clk 00:09:57]} {[%emt 00:00:02]} Rxa6 {[%clk 00:00:23]} {[%emt
00:00:01]} 39. Rc3+ {[%clk 00:09:54]} {[%emt 00:00:06]} Kd4 {[%clk 00:00:25]}
{[%emt 00:00:04]} 40. Rc7 {[%clk 00:09:36]} {[%emt 00:00:23]} h5 {[%clk
00:00:14]} {[%emt 00:00:16]} 41. e3+ {[%clk 00:09:38]} {[%emt 00:00:03]} Kd3
{[%clk 00:00:13]} {[%emt 00:00:06]} 42. Rd7 {[%clk 00:09:38]} {[%emt 00:00:05]}
Kc4 {[%clk 00:00:13]} {[%emt 00:00:05]} 43. h4 {[%clk 00:09:28]} {[%emt
00:00:14]} Rf6 {[%clk 00:00:08]} {[%emt 00:00:11]} 44. Rb7 {[%clk 00:09:17]}
{[%emt 00:00:16]} Ra6 {[%clk 00:00:10]} {[%emt 00:00:03]} 45. Ke2 {[%clk
00:09:16]} {[%emt 00:00:06]} Rxa3 {[%clk 00:00:14]} {[%emt 00:00:02]} 46. Rb6
{[%clk 00:09:19]} {[%emt 00:00:01]} Ra2+ {[%clk 00:00:10]} {[%emt 00:00:09]} 47.
Kf3 {[%clk 00:09:21]} {[%emt 00:00:03]} Ra3 {[%clk 00:00:14]} {[%emt 00:00:02]}
48. Kg2 {[%clk 00:09:16]} {[%emt 00:00:10]} d4 {[%clk 00:00:06]} {[%emt
00:00:13]} 49. exd4 {[%clk 00:09:18]} {[%emt 00:00:03]} Kxd4 {[%clk 00:00:10]}
{[%emt 00:00:01]} 50. Rxg6 {[%clk 00:09:20]} {[%emt 00:00:02]} Ra5 {[%clk
00:00:07]} {[%emt 00:00:09]} 51. Rg5 {[%clk 00:09:21]} {[%emt 00:00:04]} Ra1
{[%clk 00:00:09]} {[%emt 00:00:03]} 52. Rxh5 {[%clk 00:09:23]} {[%emt
00:00:03]} Kd5 {[%emt 00:00:04]} 1-0

[Event "SS Manhem Chess Week 2019 Goteborg Open"]
[Site "Molnlycke kulturhus, Biblioteksgatan 2, Molnlycke, Sweden"]
[Date "2019.08.16"]
[Round "1.8"]
[White "Kvarby, Anders"]
[Black "Ahlander, Bjorn"]
[Result "0-1"]
[TimeControl "15 minutes + 5 seconds per move from move one (Round 1 - 4) / 90 minutes + 30 seconds per move from move one (Round 5 - 8)"]
[BlackTitle "IM"]
[WhiteFideId "1746596"]
[BlackFideId "1700251"]
[WhiteElo "1864"]
[BlackElo "2390"]

1. d4 {[%clk 00:15:07]} Nf6 {[%clk 00:15:08]} 2. c4 {[%clk 00:15:07]} {[%emt
00:00:06]} e6 {[%clk 00:15:11]} {[%emt 00:00:02]} 3. g3 {[%clk 00:15:07]}
{[%emt 00:00:05]} c5 {[%clk 00:15:14]} {[%emt 00:00:02]} 4. Nf3 {[%clk
00:15:05]} {[%emt 00:00:08]} cxd4 {[%clk 00:15:11]} {[%emt 00:00:08]} 5. Nxd4
{[%clk 00:15:07]} {[%emt 00:00:03]} Nc6 {[%clk 00:15:13]} {[%emt 00:00:03]} 6.
Bg2 {[%clk 00:15:01]} {[%emt 00:00:10]} Bc5 {[%clk 00:15:15]} {[%emt 00:00:03]}
7. Nb3 {[%clk 00:14:41]} {[%emt 00:00:25]} Be7 {[%clk 00:15:18]} {[%emt
00:00:02]} 8. O-O {[%clk 00:14:43]} {[%emt 00:00:04]} d6 {[%clk 00:15:13]}
{[%emt 00:00:10]} 9. Nc3 {[%clk 00:14:31]} {[%emt 00:00:17]} O-O {[%clk
00:15:14]} {[%emt 00:00:04]} 10. h3 {[%clk 00:14:00]} {[%emt 00:00:37]} a6
{[%clk 00:15:17]} {[%emt 00:00:02]} 11. Be3 {[%clk 00:13:46]} {[%emt 00:00:18]}
Ne5 {[%clk 00:14:12]} {[%emt 00:01:10]} 12. Nd2 {[%clk 00:13:37]} {[%emt
00:00:15]} Qc7 {[%clk 00:13:52]} {[%emt 00:00:25]} 13. Na4 {[%clk 00:12:40]}
{[%emt 00:01:02]} Nfd7 {[%clk 00:12:59]} {[%emt 00:00:57]} 14. Rc1 {[%clk
00:11:58]} {[%emt 00:00:47]} Rb8 {[%clk 00:13:02]} {[%emt 00:00:02]} 15. b3
{[%clk 00:11:12]} {[%emt 00:00:52]} b6 {[%clk 00:12:58]} {[%emt 00:00:09]} 16.
f4 {[%clk 00:10:49]} {[%emt 00:00:28]} Ng6 {[%clk 00:12:41]} {[%emt 00:00:22]}
17. Bf2 {[%clk 00:10:46]} {[%emt 00:00:07]} Bb7 {[%clk 00:12:43]} {[%emt
00:00:03]} 18. e4 {[%clk 00:10:45]} {[%emt 00:00:06]} Nc5 {[%clk 00:12:44]}
{[%emt 00:00:03]} 19. Nb2 {[%clk 00:10:32]} {[%emt 00:00:18]} Bf6 {[%clk
00:12:13]} {[%emt 00:00:35]} 20. Rc2 {[%clk 00:10:20]} {[%emt 00:00:18]} Ba8
{[%clk 00:11:01]} {[%emt 00:01:17]} 21. Qb1 {[%clk 00:09:08]} {[%emt 00:01:17]}
Rfd8 {[%clk 00:10:50]} {[%emt 00:00:16]} 22. Rcc1 {[%clk 00:09:09]} {[%emt
00:00:04]} Bxb2 {[%clk 00:10:47]} {[%emt 00:00:07]} 23. Qxb2 {[%clk 00:09:06]}
{[%emt 00:00:08]} Nd3 {[%clk 00:10:50]} {[%emt 00:00:02]} 24. Qc2 {[%clk
00:09:08]} {[%emt 00:00:01]} Nxc1 {[%clk 00:10:49]} {[%emt 00:00:08]} 25. Rxc1
{[%clk 00:09:11]} {[%emt 00:00:02]} b5 {[%clk 00:10:47]} {[%emt 00:00:07]} 26.
c5 {[%clk 00:08:50]} {[%emt 00:00:26]} dxc5 {[%clk 00:10:07]} {[%emt 00:00:45]}
27. Bxc5 {[%clk 00:08:52]} {[%emt 00:00:03]} b4 {[%clk 00:09:48]} {[%emt
00:00:24]} 28. Qb2 {[%clk 00:08:47]} {[%emt 00:00:11]} Rbc8 {[%clk 00:09:46]}
{[%emt 00:00:07]} 29. Rc4 {[%clk 00:08:37]} {[%emt 00:00:14]} Qd7 {[%clk
00:09:24]} {[%emt 00:00:27]} 30. Bxb4 {[%clk 00:07:46]} {[%emt 00:00:56]} Rxc4
{[%clk 00:09:18]} {[%emt 00:00:12]} 31. Nxc4 {[%clk 00:07:40]} {[%emt
00:00:11]} Qd3 {[%clk 00:08:28]} {[%emt 00:00:54]} 32. Qf2 {[%clk 00:07:03]}
{[%emt 00:00:42]} Bxe4 {[%clk 00:08:06]} {[%emt 00:00:28]} 33. Bxe4 {[%clk
00:06:56]} {[%emt 00:00:13]} Qxe4 {[%clk 00:08:08]} {[%emt 00:00:03]} 34. Bd6
{[%clk 00:06:40]} {[%emt 00:00:21]} Ne7 {[%clk 00:07:34]} {[%emt 00:00:38]} 35.
Qg2 {[%clk 00:04:27]} {[%emt 00:02:18]} Qxg2+ {[%clk 00:07:24]} {[%emt
00:00:15]} 36. Kxg2 {[%clk 00:04:31]} {[%emt 00:00:02]} Nf5 {[%clk 00:07:23]}
{[%emt 00:00:06]} 37. Bc5 {[%clk 00:04:14]} {[%emt 00:00:21]} Rd3 {[%clk
00:06:43]} {[%emt 00:00:46]} 38. g4 {[%clk 00:03:45]} {[%emt 00:00:34]} Nh4+
{[%clk 00:06:45]} {[%emt 00:00:03]} 39. Kh2 {[%clk 00:03:39]} {[%emt 00:00:11]}
f6 {[%clk 00:06:11]} {[%emt 00:00:39]} 40. b4 {[%clk 00:03:26]} {[%emt
00:00:19]} Rc3 {[%clk 00:05:54]} {[%emt 00:00:21]} 41. Nb6 {[%clk 00:03:04]}
{[%emt 00:00:27]} Nf3+ {[%clk 00:05:29]} {[%emt 00:00:29]} 42. Kg2 {[%clk
00:02:48]} {[%emt 00:00:21]} Ne1+ {[%clk 00:05:31]} {[%emt 00:00:04]} 43. Kh2
{[%clk 00:02:49]} {[%emt 00:00:04]} Rc2+ {[%clk 00:05:24]} {[%emt 00:00:12]} 44.
Kg3 {[%clk 00:02:47]} {[%emt 00:00:06]} Rg2+ {[%clk 00:05:20]} {[%emt
00:00:10]} 45. Kh4 {[%clk 00:02:50]} {[%emt 00:00:02]} Nf3+ {[%clk 00:05:20]}
{[%emt 00:00:05]} 46. Kh5 {[%clk 00:02:53]} {[%emt 00:00:02]} g6+ {[%clk
00:05:10]} {[%emt 00:00:16]} 47. Kh6 {[%clk 00:02:55]} {[%emt 00:00:03]} Rh2
{[%clk 00:05:12]} {[%emt 00:00:02]} 0-1

[Event "SS Manhem Chess Week 2019 Goteborg Open"]
[Site "Molnlycke kulturhus, Biblioteksgatan 2, Molnlycke, Sweden"]
[Date "2019.08.16"]
[Round "1.9"]
[White "Kockum, Anton Frisk"]
[Black "Knutsson, Hakan"]
[Result "1-0"]
[TimeControl "15 minutes + 5 seconds per move from move one (Round 1 - 4) / 90 minutes + 30 seconds per move from move one (Round 5 - 8)"]
[WhiteTitle "FM"]
[WhiteFideId "1709143"]
[BlackFideId "1706810"]
[WhiteElo "2367"]
[BlackElo "1848"]

1. d4 {[%clk 00:15:08]} {[%emt 00:00:02]} Nf6 {[%clk 00:15:08]} {[%emt
00:00:03]} 2. c4 {[%clk 00:15:10]} {[%emt 00:00:02]} e6 {[%clk 00:15:12]}
{[%emt 00:00:01]} 3. Nf3 {[%clk 00:15:12]} {[%emt 00:00:03]} b6 {[%clk
00:15:15]} {[%emt 00:00:02]} 4. g3 {[%clk 00:15:15]} {[%emt 00:00:03]} Ba6
{[%clk 00:15:18]} {[%emt 00:00:02]} 5. Qc2 {[%clk 00:15:17]} {[%emt 00:00:02]}
c5 {[%clk 00:15:10]} {[%emt 00:00:13]} 6. d5 {[%clk 00:15:19]} {[%emt
00:00:02]} Bb7 {[%clk 00:13:50]} {[%emt 00:01:25]} 7. Bg2 {[%clk 00:15:18]}
{[%emt 00:00:06]} d6 {[%clk 00:12:59]} {[%emt 00:00:57]} 8. O-O {[%clk
00:14:20]} {[%emt 00:01:02]} e5 {[%clk 00:12:53]} {[%emt 00:00:11]} 9. Nc3
{[%clk 00:13:41]} {[%emt 00:00:44]} Be7 {[%clk 00:12:51]} {[%emt 00:00:07]} 10.
Nh4 {[%clk 00:13:08]} {[%emt 00:00:38]} Bc8 {[%clk 00:12:41]} {[%emt 00:00:15]}
11. f4 {[%clk 00:11:35]} {[%emt 00:01:37]} exf4 {[%clk 00:12:03]} {[%emt
00:00:43]} 12. gxf4 {[%clk 00:11:19]} {[%emt 00:00:21]} g6 {[%clk 00:10:21]}
{[%emt 00:01:47]} 13. f5 {[%clk 00:09:34]} {[%emt 00:01:50]} Rg8 {[%clk
00:07:56]} {[%emt 00:02:29]} 14. fxg6 {[%clk 00:08:11]} {[%emt 00:01:28]} hxg6
{[%clk 00:07:43]} {[%emt 00:00:18]} 15. Bg5 {[%clk 00:06:18]} {[%emt 00:01:57]}
Nbd7 {[%clk 00:06:20]} {[%emt 00:01:29]} 16. Nf3 {[%clk 00:04:41]} {[%emt
00:01:41]} Nh7 {[%clk 00:05:17]} {[%emt 00:01:09]} 17. Bf4 {[%clk 00:04:18]}
{[%emt 00:00:27]} Ndf6 {[%clk 00:04:55]} {[%emt 00:00:27]} 18. e4 {[%clk
00:03:47]} {[%emt 00:00:36]} Nh5 {[%clk 00:04:45]} {[%emt 00:00:15]} 19. Bd2
{[%clk 00:03:32]} {[%emt 00:00:20]} Bg4 {[%clk 00:04:06]} {[%emt 00:00:44]} 20.
Rae1 {[%clk 00:02:55]} {[%emt 00:00:42]} Qd7 {[%clk 00:03:50]} {[%emt
00:00:21]} 21. e5 {[%clk 00:02:47]} {[%emt 00:00:12]} O-O-O {[%clk 00:03:44]}
{[%emt 00:00:11]} 22. e6 {[%clk 00:02:31]} {[%emt 00:00:21]} fxe6 {[%clk
00:03:44]} {[%emt 00:00:05]} 23. dxe6 {[%clk 00:02:30]} {[%emt 00:00:06]} Qe8
{[%clk 00:03:39]} {[%emt 00:00:10]} 24. Qe4 {[%clk 00:01:59]} {[%emt 00:00:36]}
Bxf3 {[%clk 00:03:36]} {[%emt 00:00:09]} 25. Bxf3 {[%clk 00:02:00]} {[%emt
00:00:03]} d5 {[%clk 00:03:33]} {[%emt 00:00:08]} 26. Nxd5 {[%clk 00:01:59]}
{[%emt 00:00:06]} 1-0

[Event "SS Manhem Chess Week 2019 Goteborg Open"]
[Site "Molnlycke kulturhus, Biblioteksgatan 2, Molnlycke, Sweden"]
[Date "2019.08.16"]
[Round "1.10"]
[White "Ziegler, Nathalie"]
[Black "Malmstig, Erik"]
[Result "1/2-1/2"]
[TimeControl "15 minutes + 5 seconds per move from move one (Round 1 - 4) / 90 minutes + 30 seconds per move from move one (Round 5 - 8)"]
[BlackTitle "FM"]
[WhiteFideId "1715984"]
[BlackFideId "1702866"]
[WhiteElo "1846"]
[BlackElo "2335"]

1. c4 {[%clk 00:15:08]} {[%emt 00:00:03]} e5 {[%clk 00:15:07]} {[%emt
00:00:02]} 2. Nc3 {[%clk 00:15:09]} {[%emt 00:00:04]} d6 {[%clk 00:15:09]}
{[%emt 00:00:02]} 3. Nf3 {[%clk 00:15:06]} {[%emt 00:00:08]} f5 {[%clk
00:15:10]} {[%emt 00:00:04]} 4. g3 {[%clk 00:14:59]} {[%emt 00:00:12]} Nf6
{[%clk 00:15:10]} {[%emt 00:00:06]} 5. d3 {[%clk 00:14:58]} {[%emt 00:00:06]}
c6 {[%clk 00:15:09]} {[%emt 00:00:06]} 6. Bg2 {[%clk 00:15:01]} {[%emt
00:00:02]} Be7 {[%clk 00:15:02]} {[%emt 00:00:12]} 7. O-O {[%clk 00:14:45]}
{[%emt 00:00:21]} O-O {[%clk 00:14:57]} {[%emt 00:00:07]} 8. b3 {[%clk
00:14:19]} {[%emt 00:00:32]} Na6 {[%clk 00:14:36]} {[%emt 00:00:27]} 9. Bb2
{[%clk 00:14:15]} {[%emt 00:00:09]} h6 {[%clk 00:14:28]} {[%emt 00:00:13]} 10.
e4 {[%clk 00:13:54]} {[%emt 00:00:26]} Qe8 {[%clk 00:13:43]} {[%emt 00:00:51]}
11. Nh4 {[%clk 00:12:47]} {[%emt 00:01:12]} f4 {[%clk 00:11:51]} {[%emt
00:01:56]} 12. Nf5 {[%clk 00:11:55]} {[%emt 00:00:58]} Bxf5 {[%clk 00:08:39]}
{[%emt 00:03:16]} 13. exf5 {[%clk 00:11:59]} {[%emt 00:00:01]} Nh5 {[%clk
00:08:30]} {[%emt 00:00:14]} 14. Bf3 {[%clk 00:10:28]} {[%emt 00:01:36]} Rxf5
{[%clk 00:07:30]} {[%emt 00:01:05]} 15. Bg4 {[%clk 00:10:17]} {[%emt 00:00:15]}
Rg5 {[%clk 00:07:32]} {[%emt 00:00:03]} 16. Ne4 {[%clk 00:10:17]} {[%emt
00:00:05]} Rxg4 {[%clk 00:07:33]} {[%emt 00:00:04]} 17. Qxg4 {[%clk 00:10:19]}
{[%emt 00:00:03]} Qf7 {[%clk 00:07:19]} {[%emt 00:00:19]} 18. d4 {[%clk
00:09:51]} {[%emt 00:00:34]} d5 {[%clk 00:07:06]} {[%emt 00:00:18]} 19. cxd5
{[%clk 00:05:41]} {[%emt 00:04:16]} cxd5 {[%clk 00:07:05]} {[%emt 00:00:06]} 20.
Nc5 {[%clk 00:04:52]} {[%emt 00:00:54]} Bxc5 {[%clk 00:05:23]} {[%emt
00:01:47]} 21. dxc5 {[%clk 00:04:54]} {[%emt 00:00:03]} e4 {[%clk 00:05:04]}
{[%emt 00:00:24]} 22. c6 {[%clk 00:04:14]} {[%emt 00:00:46]} bxc6 {[%clk
00:05:05]} {[%emt 00:00:04]} 23. Rac1 {[%clk 00:04:17]} c5 {[%clk 00:04:45]}
{[%emt 00:00:25]} 24. Ba3 {[%clk 00:04:13]} {[%emt 00:00:10]} fxg3 {[%clk
00:04:19]} {[%emt 00:00:31]} 25. fxg3 {[%clk 00:04:08]} {[%emt 00:00:10]} Nf6
{[%clk 00:04:22]} {[%emt 00:00:02]} 26. Qf5 {[%clk 00:04:03]} {[%emt 00:00:09]}
Qe7 {[%clk 00:04:10]} {[%emt 00:00:18]} 27. Bb2 {[%clk 00:03:56]} {[%emt
00:00:13]} Rd8 {[%clk 00:03:18]} {[%emt 00:00:56]} 28. Bxf6 {[%clk 00:03:52]}
{[%emt 00:00:09]} Qxf6 {[%clk 00:03:14]} {[%emt 00:00:09]} 29. Qxf6 {[%clk
00:03:55]} {[%emt 00:00:02]} gxf6 {[%clk 00:03:18]} {[%emt 00:00:01]} 30. Rxf6
{[%clk 00:03:59]} {[%emt 00:00:01]} Nb4 {[%clk 00:03:17]} {[%emt 00:00:06]} 31.
Rxc5 {[%clk 00:03:58]} {[%emt 00:00:06]} e3 {[%clk 00:03:15]} {[%emt 00:00:07]}
32. Rc7 {[%clk 00:03:29]} {[%emt 00:00:33]} d4 {[%clk 00:03:10]} {[%emt
00:00:10]} 33. Rg6+ {[%clk 00:03:18]} {[%emt 00:00:16]} Kf8 {[%clk 00:03:12]}
{[%emt 00:00:03]} 34. Rf6+ {[%clk 00:03:21]} {[%emt 00:00:02]} Kg8 {[%clk
00:03:15]} {[%emt 00:00:01]} 35. Rg6+ {[%emt 00:00:15]} 1/2-1/2

[Event "SS Manhem Chess Week 2019 Goteborg Open"]
[Site "Molnlycke kulturhus, Biblioteksgatan 2, Molnlycke, Sweden"]
[Date "2019.08.16"]
[Round "1.11"]
[White "Nilsson, Joakim"]
[Black "Westerlund, Ola"]
[Result "0-1"]
[TimeControl "15 minutes + 5 seconds per move from move one (Round 1 - 4) / 90 minutes + 30 seconds per move from move one (Round 5 - 8)"]
[WhiteTitle "FM"]
[WhiteFideId "1723383"]
[BlackFideId "1712101"]
[WhiteElo "2319"]
[BlackElo "1845"]

1. Nf3 {[%clk 01:30:58]} d6 {[%clk 01:29:57]} 2. d4 {[%emt 08:50:10]} f5 3. c4
{[%clk 00:14:55]} {[%emt 00:00:09]} Nf6 {[%clk 00:15:04]} {[%emt 00:00:01]} 4.
Nc3 {[%clk 00:14:59]} {[%emt 00:00:01]} e6 {[%clk 00:15:04]} {[%emt 00:00:05]}
5. g3 {[%clk 00:14:58]} {[%emt 00:00:06]} Be7 {[%clk 00:15:08]} {[%emt
00:00:02]} 6. Bg2 {[%clk 00:15:01]} {[%emt 00:00:01]} O-O {[%clk 00:15:11]}
{[%emt 00:00:02]} 7. O-O {[%clk 00:15:04]} {[%emt 00:00:02]} a5 {[%clk
00:15:07]} {[%emt 00:00:09]} 8. Re1 {[%clk 00:14:30]} {[%emt 00:00:39]} Nc6
{[%clk 00:13:19]} {[%emt 00:01:53]} 9. e4 fxe4 {[%clk 00:12:00]} 10. Nxe4
{[%clk 00:13:49]} {[%emt 00:00:06]} e5 {[%clk 00:10:52]} {[%emt 00:01:14]} 11.
d5 {[%clk 00:10:08]} {[%emt 00:03:45]} Nxe4 {[%clk 00:07:02]} {[%emt 00:03:55]}
12. dxc6 {[%clk 00:09:47]} {[%emt 00:00:27]} Nc5 {[%clk 00:07:05]} {[%emt
00:00:02]} 13. Be3 {[%clk 00:09:24]} {[%emt 00:00:27]} b6 {[%clk 00:06:04]}
{[%emt 00:01:07]} 14. h4 {[%clk 00:05:15]} {[%emt 00:04:13]} Bg4 {[%clk
00:03:04]} {[%emt 00:03:05]} 15. Qd2 {[%clk 00:05:01]} {[%emt 00:00:19]} Bxf3
{[%clk 00:03:02]} {[%emt 00:00:07]} 16. Bh3 {[%clk 00:04:15]} {[%emt 00:00:51]}
Bxc6 {[%clk 00:02:41]} {[%emt 00:00:26]} 17. h5 {[%clk 00:03:57]} {[%emt
00:00:23]} Ne4 {[%clk 00:01:55]} {[%emt 00:00:51]} 18. Qc2 {[%clk 00:03:23]}
{[%emt 00:00:40]} Ng5 {[%clk 00:01:45]} {[%emt 00:00:15]} 19. Bxg5 {[%clk
00:03:27]} {[%emt 00:00:02]} Bxg5 {[%clk 00:01:49]} 20. Rad1 {[%clk 00:02:58]}
{[%emt 00:00:34]} Qf6 {[%clk 00:01:41]} {[%emt 00:00:13]} 21. Bg4 {[%clk
00:02:42]} {[%emt 00:00:21]} Bf3 {[%clk 00:01:18]} {[%emt 00:00:28]} 22. Bxf3
{[%clk 00:02:30]} {[%emt 00:00:17]} Qxf3 {[%clk 00:01:20]} {[%emt 00:00:03]} 23.
Rd3 {[%clk 00:02:26]} {[%emt 00:00:10]} Qxh5 {[%clk 00:01:18]} {[%emt
00:00:07]} 24. Kg2 {[%clk 00:02:29]} {[%emt 00:00:01]} Qg6 {[%clk 00:01:15]}
{[%emt 00:00:08]} 25. Qe2 {[%clk 00:02:11]} {[%emt 00:00:23]} Rf7 {[%clk
00:01:02]} {[%emt 00:00:18]} 26. Rf1 {[%clk 00:01:06]} {[%emt 00:01:10]} Raf8
{[%clk 00:00:51]} {[%emt 00:00:16]} 27. Rb3 {[%clk 00:01:08]} {[%emt 00:00:04]}
e4 {[%clk 00:00:32]} {[%emt 00:00:24]} 28. Rb5 {[%clk 00:00:56]} {[%emt
00:00:17]} Rf3 {[%clk 00:00:24]} {[%emt 00:00:12]} 29. Qc2 {[%clk 00:00:35]}
{[%emt 00:00:26]} e3 {[%clk 00:00:16]} {[%emt 00:00:13]} 30. Qxg6 {[%clk
00:00:38]} {[%emt 00:00:02]} hxg6 {[%clk 00:00:20]} {[%emt 00:00:01]} 31. Rxg5
{[%clk 00:00:42]} {[%emt 00:00:02]} Rxf2+ {[%clk 00:00:21]} {[%emt 00:00:04]}
32. Rxf2 {[%clk 00:00:45]} {[%emt 00:00:02]} Rxf2+ {[%clk 00:00:25]} {[%emt
00:00:01]} 33. Kg1 {[%clk 00:00:47]} {[%emt 00:00:03]} Rxb2 {[%clk 00:00:28]}
{[%emt 00:00:03]} 34. Rxg6 {[%clk 00:00:42]} {[%emt 00:00:09]} Rxa2 {[%clk
00:00:30]} {[%emt 00:00:03]} 35. Re6 {[%clk 00:00:46]} {[%emt 00:00:01]} e2
{[%clk 00:00:34]} {[%emt 00:00:01]} 36. Kf2 {[%clk 00:00:49]} {[%emt 00:00:01]}
Rc2 {[%clk 00:00:38]} {[%emt 00:00:02]} 37. Re4 {[%clk 00:00:48]} {[%emt
00:00:06]} a4 {[%clk 00:00:41]} {[%emt 00:00:02]} 38. c5 {[%clk 00:00:48]}
{[%emt 00:00:06]} bxc5 {[%clk 00:00:41]} {[%emt 00:00:05]} 39. Rxa4 {[%clk
00:00:52]} d5 {[%clk 00:00:43]} {[%emt 00:00:03]} 40. Ra7 {[%clk 00:00:53]}
{[%emt 00:00:04]} d4 {[%clk 00:00:45]} {[%emt 00:00:03]} 41. Rxc7 {[%clk
00:00:57]} d3 {[%clk 00:00:49]} {[%emt 00:00:01]} 42. Ke1 {[%clk 00:01:01]}
{[%emt 00:00:01]} Rc1+ {[%clk 00:00:50]} {[%emt 00:00:04]} 0-1